{"text_format":"1","workbook":"xlsx","n_sheets":2,"sheets":["Uputstva & Podešavanje","12. sept"],"not_rendered":{"charts":0,"images":0,"macros":1,"external_links":1,"defined_names":13,"comments":0,"pivot_tables":0},"unopened":[],"bounds":{"document_bytes":16777216,"sheet_cells":100000,"rows_first":2000,"rows_last":500,"rows_between":2000,"halvings":0,"cell_chars":16384,"cell_head_chars":4096},"cells_cut":0,"cells_raw":0,"read":"whole","date_system":"1900"}

{"sheet":"Uputstva & Podešavanje","index":0,"n_rows":23,"n_cols":9,"rows_kept":23,"cut":false,"hidden":false,"merged":[[3,2,3,4],[5,2,5,4],[7,2,7,4],[9,2,9,4],[3,7,3,8],[5,7,5,8],[7,7,7,8],[9,7,9,8],[11,7,11,8],[4,7,4,8],[6,7,6,8],[8,7,8,8],[10,7,10,8]]}
[]
[null,"Uputstva & Podešavanje"]
[]
[null,1,"U tabeli „Časovi“ ispod, otkucajte nazive časova koje želite da pratite u ovom rasporedu.",null,null,null,5,"Unesite datum početka svog rasporeda u ćeliju A5."]
[]
[null,2,"U tabeli „Aktivnosti“, koje se takođe nalaze ispod, izmenite aktivnosti date kao primer da biste ih prilagodili svojim potrebama. ",null,null,null,6,"U redu 4, koristite padajuću listu da biste dodali časove u raspored."]
[]
[null,3,"U ćeliji I14 podesite broj redova koje želite da koristite za svakodnevne domaće zadatke.",null,null,null,7,"Ispod svakog časa dodajte svoje zadatke u kolonu Zadaci."]
[]
[null,4,"Na listu rasporeda, na primer 12. sept, uradite korake 5 - 9.",null,null,null,8,"Procenite ukupan broj sati koji će vam trebati za svaki zadatak u koloni „Sati“, koja je obeležena ikonom sata."]
[]
[null,null,null,null,null,null,9,"Kada ste dovršili zadatak, dvaput kliknite na kolonu „Gotovo“, koja je obeležena znakom potvrde pored zadatka."]
[]
[null,null,"Časovi",null,"Aktivnosti",null,null,"Broj redova za svaki dan:",5]
[null,null,"Matematika 101",null,"Diskusija"]
[null,null,"Engleski 105",null,"Laboratorija"]
[null,null,"Francuski 103",null,"Predavanje"]
[null,null,"Prirodne nauke 101",null,"Test"]
[null,null,"Istorija 101",null,"Čitanje"]
[null,null,null,null,"Razmišljanje"]
[null,null,null,null,"Referat"]
[null,null,null,null,"Ponavljanje gradiva"]
[null,null,null,null,"Učenje"]

{"sheet":"12. sept","index":1,"n_rows":103,"n_cols":24,"rows_kept":103,"cut":false,"hidden":false,"merged":[]}
[]
[null,"Domaći zadatak"]
[]
[null,"Unesite datum početka","Ukupno"," Čas:",null,"Matematika 101"," Čas:",null,"Engleski 105"," Čas:",null,"Francuski 103"," Čas:",null,"Prirodne nauke 101"," Čas:",null,null," Čas:",null,null," Čas:"]
[null,"2011-09-12",null,null,null,"ZADATAK",null,null,"ZADATAK",null,null,"ZADATAK",null,null,"ZADATAK",null,null,"ZADATAK",null,null,"ZADATAK",null,null,"ZADATAK"]
[]
[null,{"$f":"Danplana","v":"2011-09-12"},{"$f":"DailyHourTotals","v":6.5},1,1.5,"Čitanje",1,2,"Učenje",null,1,"Čitanje",1,1,"Test"]
[null,{"$f":"Danplana","v":""},{"$f":"DailyHourTotals","v":""},1,1,"Ponavljanje gradiva"]
[null,{"$f":"Danplana","v":""},{"$f":"DailyHourTotals","v":""}]
[null,{"$f":"Danplana","v":""},{"$f":"DailyHourTotals","v":""}]
[null,{"$f":"Danplana","v":""},{"$f":"DailyHourTotals","v":""}]
[null,{"$f":"Danplana","v":"2011-09-13"},{"$f":"DailyHourTotals","v":0}]
[null,{"$f":"Danplana","v":""},{"$f":"DailyHourTotals","v":""}]
[null,{"$f":"Danplana","v":""},{"$f":"DailyHourTotals","v":""}]
[null,{"$f":"Danplana","v":""},{"$f":"DailyHourTotals","v":""}]
[null,{"$f":"Danplana","v":""},{"$f":"DailyHourTotals","v":""}]
[null,{"$f":"Danplana","v":"2011-09-14"},{"$f":"DailyHourTotals","v":0}]
[null,{"$f":"Danplana","v":""},{"$f":"DailyHourTotals","v":""}]
[null,{"$f":"Danplana","v":""},{"$f":"DailyHourTotals","v":""}]
[null,{"$f":"Danplana","v":""},{"$f":"DailyHourTotals","v":""}]
[null,{"$f":"Danplana","v":""},{"$f":"DailyHourTotals","v":""}]
[null,{"$f":"Danplana","v":"2011-09-15"},{"$f":"DailyHourTotals","v":0}]
[null,{"$f":"Danplana","v":""},{"$f":"DailyHourTotals","v":""}]
[null,{"$f":"Danplana","v":""},{"$f":"DailyHourTotals","v":""}]
[null,{"$f":"Danplana","v":""},{"$f":"DailyHourTotals","v":""}]
[null,{"$f":"Danplana","v":""},{"$f":"DailyHourTotals","v":""}]
[null,{"$f":"Danplana","v":"2011-09-16"},{"$f":"DailyHourTotals","v":0}]
[null,{"$f":"Danplana","v":""},{"$f":"DailyHourTotals","v":""}]
[null,{"$f":"Danplana","v":""},{"$f":"DailyHourTotals","v":""}]
[null,{"$f":"Danplana","v":""},{"$f":"DailyHourTotals","v":""}]
[null,{"$f":"Danplana","v":""},{"$f":"DailyHourTotals","v":""}]
[null,{"$f":"Danplana","v":"2011-09-17"},{"$f":"DailyHourTotals","v":0}]
[null,{"$f":"Danplana","v":""},{"$f":"DailyHourTotals","v":""}]
[null,{"$f":"Danplana","v":""},{"$f":"DailyHourTotals","v":""}]
[null,{"$f":"Danplana","v":""},{"$f":"DailyHourTotals","v":""}]
[null,{"$f":"Danplana","v":""},{"$f":"DailyHourTotals","v":""}]
[null,{"$f":"Danplana","v":"2011-09-18"},{"$f":"DailyHourTotals","v":0}]
[null,{"$f":"Danplana","v":""},{"$f":"DailyHourTotals","v":""}]
[null,{"$f":"Danplana","v":""},{"$f":"DailyHourTotals","v":""}]
[null,{"$f":"Danplana","v":""},{"$f":"DailyHourTotals","v":""}]
[null,{"$f":"Danplana","v":""},{"$f":"DailyHourTotals","v":""}]
[null,{"$f":"Danplana","v":""},{"$f":"DailyHourTotals","v":""}]
[null,{"$f":"Danplana","v":""},{"$f":"DailyHourTotals","v":""}]
[null,{"$f":"Danplana","v":""},{"$f":"DailyHourTotals","v":""}]
[null,{"$f":"Danplana","v":""},{"$f":"DailyHourTotals","v":""}]
[null,{"$f":"Danplana","v":""},{"$f":"DailyHourTotals","v":""}]
[null,{"$f":"Danplana","v":""},{"$f":"DailyHourTotals","v":""}]
[null,{"$f":"Danplana","v":""},{"$f":"DailyHourTotals","v":""}]
[null,{"$f":"Danplana","v":""},{"$f":"DailyHourTotals","v":""}]
[null,{"$f":"Danplana","v":""},{"$f":"DailyHourTotals","v":""}]
[null,{"$f":"Danplana","v":""},{"$f":"DailyHourTotals","v":""}]
[null,{"$f":"Danplana","v":""},{"$f":"DailyHourTotals","v":""}]
[null,{"$f":"Danplana","v":""},{"$f":"DailyHourTotals","v":""}]
[null,{"$f":"Danplana","v":""},{"$f":"DailyHourTotals","v":""}]
[null,{"$f":"Danplana","v":""},{"$f":"DailyHourTotals","v":""}]
[null,{"$f":"Danplana","v":""},{"$f":"DailyHourTotals","v":""}]
[null,{"$f":"Danplana","v":""},{"$f":"DailyHourTotals","v":""}]
[null,{"$f":"Danplana","v":""},{"$f":"DailyHourTotals","v":""}]
[null,{"$f":"Danplana","v":""},{"$f":"DailyHourTotals","v":""}]
[null,{"$f":"Danplana","v":""},{"$f":"DailyHourTotals","v":""}]
[null,{"$f":"Danplana","v":""},{"$f":"DailyHourTotals","v":""}]
[null,{"$f":"Danplana","v":""},{"$f":"DailyHourTotals","v":""}]
[null,{"$f":"Danplana","v":""},{"$f":"DailyHourTotals","v":""}]
[null,{"$f":"Danplana","v":""},{"$f":"DailyHourTotals","v":""}]
[null,{"$f":"Danplana","v":""},{"$f":"DailyHourTotals","v":""}]
[null,{"$f":"Danplana","v":""},{"$f":"DailyHourTotals","v":""}]
[null,{"$f":"Danplana","v":""},{"$f":"DailyHourTotals","v":""}]
[null,{"$f":"Danplana","v":""},{"$f":"DailyHourTotals","v":""}]
[null,{"$f":"Danplana","v":""},{"$f":"DailyHourTotals","v":""}]
[null,{"$f":"Danplana","v":""},{"$f":"DailyHourTotals","v":""}]
[null,{"$f":"Danplana","v":""},{"$f":"DailyHourTotals","v":""}]
[null,{"$f":"Danplana","v":""},{"$f":"DailyHourTotals","v":""}]
[null,{"$f":"Danplana","v":""},{"$f":"DailyHourTotals","v":""}]
[null,{"$f":"Danplana","v":""},{"$f":"DailyHourTotals","v":""}]
[null,{"$f":"Danplana","v":""},{"$f":"DailyHourTotals","v":""}]
[null,{"$f":"Danplana","v":""},{"$f":"DailyHourTotals","v":""}]
[null,{"$f":"Danplana","v":""},{"$f":"DailyHourTotals","v":""}]
[null,{"$f":"Danplana","v":""},{"$f":"DailyHourTotals","v":""}]
[null,{"$f":"Danplana","v":""},{"$f":"DailyHourTotals","v":""}]
[null,{"$f":"Danplana","v":""},{"$f":"DailyHourTotals","v":""}]
[null,{"$f":"Danplana","v":""},{"$f":"DailyHourTotals","v":""}]
[null,{"$f":"Danplana","v":""},{"$f":"DailyHourTotals","v":""}]
[null,{"$f":"Danplana","v":""},{"$f":"DailyHourTotals","v":""}]
[null,{"$f":"Danplana","v":""},{"$f":"DailyHourTotals","v":""}]
[null,{"$f":"Danplana","v":""},{"$f":"DailyHourTotals","v":""}]
[null,{"$f":"Danplana","v":""},{"$f":"DailyHourTotals","v":""}]
[null,{"$f":"Danplana","v":""},{"$f":"DailyHourTotals","v":""}]
[null,{"$f":"Danplana","v":""},{"$f":"DailyHourTotals","v":""}]
[null,{"$f":"Danplana","v":""},{"$f":"DailyHourTotals","v":""}]
[null,{"$f":"Danplana","v":""},{"$f":"DailyHourTotals","v":""}]
[null,{"$f":"Danplana","v":""},{"$f":"DailyHourTotals","v":""}]
[null,{"$f":"Danplana","v":""},{"$f":"DailyHourTotals","v":""}]
[null,{"$f":"Danplana","v":""},{"$f":"DailyHourTotals","v":""}]
[null,{"$f":"Danplana","v":""},{"$f":"DailyHourTotals","v":""}]
[null,{"$f":"Danplana","v":""},{"$f":"DailyHourTotals","v":""}]
[null,{"$f":"Danplana","v":""},{"$f":"DailyHourTotals","v":""}]
[null,{"$f":"Danplana","v":""},{"$f":"DailyHourTotals","v":""}]
[null,{"$f":"Danplana","v":""},{"$f":"DailyHourTotals","v":""}]
[null,{"$f":"Danplana","v":""},{"$f":"DailyHourTotals","v":""}]
[null,{"$f":"Danplana","v":""},{"$f":"DailyHourTotals","v":""}]
[null,{"$f":"Danplana","v":""},{"$f":"DailyHourTotals","v":""}]
[null,{"$f":"Danplana","v":""},{"$f":"DailyHourTotals","v":""}]
[null,{"$f":"Danplana","v":""},{"$f":"DailyHourTotals","v":""}]